[Event "FIDE Open World Rapid 2024"]
[Site "New York"]
[Date "2024.12.27"]
[Round "8.35"]
[White "Theodorou, Nikolas"]
[Black "Shimanov, Aleksandr"]
[Result "1-0"]
[ECO "D15"]
[WhiteElo "2600"]
[BlackElo "2593"]
[Annotator "ChessBase"]
[PlyCount "129"]
[EventDate "2024.12.14"]
[EventType "swiss"]
[EventCountry "USA"]
[SourceTitle "playchess.com"]
[Source "ChessBase"]
[SourceQuality "1"]
[TimeControl "900+10"]

1. d4 {[%emt 0:00:03]} d5 {[%emt 0:00:20]} 2. c4 {[%emt 0:00:04]} c6 {[%emt 0:00:02]} 3. Nf3 {[%emt 0:00:02]} Nf6 {[%emt 0:00:01]} 4. Nc3 {[%emt 0:00:03]} a6 {[%emt 0:00:02]} 5. g3 {[%emt 0:00:13]} b5 {[%emt 0:00:04]} 6. c5 {[%emt 0:02:45]} h6 {[%emt 0:03:34]} 7. Bg2 {[%emt 0:01:24]} Bf5 {[%emt 0:00:04]} 8. O-O {[%emt 0:00:14]} e6 {[%emt 0:00:44]} 9. Nd2 {[%emt 0:01:42]} Nbd7 {[%emt 0:00:59]} 10. e4 {[%emt 0:00:18]} dxe4 {[%emt 0:00:02]} 11. Ndxe4 {[%emt 0:00:09]} Nxe4 {[%emt 0:01:18]} 12. Nxe4 {[%emt 0:00:03]} Rc8 {[%emt 0:00:05]} 13. a4 {[%emt 0:00:26]} Bxe4 {[%emt 0:00:38]} 14. Bxe4 {[%emt 0:00:02]} Nf6 {[%emt 0:00:02]} 15. Bc2 {[%emt 0:00:50]} Be7 {[%emt 0:00:11]} 16. axb5 {[%emt 0:00:17]} axb5 {[%emt 0:00:01]} 17. Re1 {[%emt 0:01:04]} Nd5 {[%emt 0:01:48]} 18. Qg4 {[%emt 0:00:24]} Kf8 {[%emt 0:00:14]} 19. h4 {[%emt 0:00:34]} Bf6 {[%emt 0:03:01]} 20. Bd2 {[%emt 0:01:56]} Qd7 {[%emt 0:01:29]} 21. h5 {[%emt 0:00:28]} Ke7 {[%emt 0:00:15]} 22. Re2 {[%emt 0:00:28]} Rhe8 {[%emt 0:00:30]} 23. Rae1 {[%emt 0:00:11]} Ra8 {[%emt 0:01:00]} 24. Bb3 {[%emt 0:00:14]} Kd8 {[%emt 0:00:16]} 25. Qf3 {[%emt 0:01:37]} Rh8 {[%emt 0:00:52]} 26. Re4 {[%emt 0:00:25]} Kc8 {[%emt 0:00:15]} 27. Rg4 {[%emt 0:01:19]} Kb7 {[%emt 0:00:14]} 28. Kg2 {[%emt 0:00:16]} Ne7 {[%emt 0:00:31]} 29. Bf4 {[%emt 0:00:54]} Nf5 {[%emt 0:00:27]} 30. Rd1 {[%emt 0:00:07]} Rhd8 {[%emt 0:00:11]} 31. Qe4 {[%emt 0:00:07]} Ne7 {[%emt 0:00:37]} 32. Be5 {[%emt 0:00:32]} Nd5 {[%emt 0:00:07]} 33. Qf3 {[%emt 0:00:28]} Qe7 {[%emt 0:00:15]} 34. Re4 {[%emt 0:00:45]} Bxe5 {[%emt 0:00:24]} 35. Rxe5 {[%emt 0:00:14]} Qf6 {[%emt 0:00:04]} 36. Bxd5 {[%emt 0:00:11]} cxd5 {[%emt 0:00:10]} 37. Qd3 {[%emt 0:00:18]} Kc6 {[%emt 0:00:02]} 38. Re3 {[%emt 0:00:02]} Ra4 {[%emt 0:00:10]} 39. Rf3 {[%emt 0:00:04]} Qe7 {[%emt 0:00:02]} 40. Qh7 {[%emt 0:00:11]} f5 {[%emt 0:00:10]} 41. Re3 {[%emt 0:00:14]} Qf6 {[%emt 0:00:11]} 42. b3 {[%emt 0:00:18]} Ra2 {[%emt 0:00:17]} 43. b4 {[%emt 0:00:08]} Ra4 {[%emt 0:00:07]} 44. Rde1 {[%emt 0:00:07]} Re8 {[%emt 0:00:01]} 45. Rb3 {[%emt 0:00:12]} Ra2 {[%emt 0:00:23]} 46. Rbe3 {[%emt 0:00:05]} Ra4 {[%emt 0:00:02]} 47. Rxe6+ {[%emt 0:00:17]} Rxe6 {[%emt 0:00:02]} 48. Qg8 {[%emt 0:00:01]} Kd7 {[%emt 0:00:24]} 49. c6+ {[%emt 0:00:01]} Rxc6 {[%emt 0:00:12]} 50. Qe8+ {[%emt 0:00:17]} Kd6 {[%emt 0:00:01]} 51. Qb8+ {[%emt 0:00:10]} Rc7 {[%emt 0:00:22]} 52. Re8 {[%emt 0:00:25]} Kc6 {[%emt 0:00:22]} 53. Re1 {[%emt 0:00:07]} Raa7 {[%emt 0:00:06]} 54. Qe8+ {[%emt 0:00:08]} Kb7 {[%emt 0:00:12]} 55. Re6 {[%emt 0:00:07]} Qf7 {[%emt 0:00:16]} 56. Qxb5+ {[%emt 0:00:03]} Kc8 {[%emt 0:00:00]} 57. Re8+ {[%emt 0:00:02]} Qxe8 {[%emt 0:00:02]} 58. Qxe8+ {[%emt 0:00:02]} Kb7 {[%emt 0:00:01]} 59. Qb5+ {[%emt 0:00:03]} Kc8 {[%emt 0:00:01]} 60. Qxd5 {[%emt 0:00:02]} Rf7 {[%emt 0:00:02]} 61. b5 {[%emt 0:00:06]} f4 {[%emt 0:00:20]} 62. b6 {[%emt 0:00:11]} Rab7 {[%emt 0:00:07]} 63. Qc6+ {[%emt 0:00:16]} Kd8 {[%emt 0:00:02]} 64. g4 {[%emt 0:00:17]} Rbd7 {[%emt 0:00:11]} 65. Qa8+ {[%emt 0:00:14]} 1-0

[Event "FIDE Open World Rapid 2024"]
[Site "New York"]
[Date "2024.12.28"]
[Round "8.35"]
[White "Sharshenbekov, Emir"]
[Black "Wagner, Dennis"]
[Result "1-0"]
[ECO "C50"]
[WhiteElo "2078"]
[BlackElo "2616"]
[Annotator "ChessBase"]
[PlyCount "89"]
[EventDate "2024.12.14"]
[EventType "swiss"]
[EventCountry "USA"]
[SourceTitle "playchess.com"]
[Source "ChessBase"]
[SourceQuality "1"]
[TimeControl "900+10"]

1. e4 {[%emt 0:00:03]} e5 {[%emt 0:00:01]} 2. Nf3 {[%emt 0:00:02]} Nc6 {[%emt 0:00:01]} 3. Nc3 {[%emt 0:00:02]} Nf6 {[%emt 0:00:02]} 4. Bb5 {[%emt 0:00:02]} Bd6 {[%emt 0:00:15]} 5. O-O {[%emt 0:00:03]} O-O {[%emt 0:00:09]} 6. d3 {[%emt 0:01:40]} h6 {[%emt 0:00:09]} 7. a3 {[%emt 0:00:19]} a6 {[%emt 0:00:22]} 8. Bc4 {[%emt 0:00:02]} Bc5 {[%emt 0:00:04]} 9. Be3 {[%emt 0:00:12]} d6 {[%emt 0:00:23]} 10. h3 {[%emt 0:03:41]} Re8 {[%emt 0:00:13]} 11. b4 {[%emt 0:00:27]} Bxe3 {[%emt 0:03:56]} 12. fxe3 {[%emt 0:00:02]} Be6 {[%emt 0:00:02]} 13. Bxe6 {[%emt 0:00:58]} Rxe6 {[%emt 0:00:03]} 14. Nd5 {[%emt 0:00:34]} Ne7 {[%emt 0:01:05]} 15. c4 {[%emt 0:01:29]} c6 {[%emt 0:00:01]} 16. Nxe7+ {[%emt 0:00:03]} Qxe7 {[%emt 0:00:10]} 17. Nh4 {[%emt 0:00:02]} g6 {[%emt 0:00:19]} 18. Qf3 {[%emt 0:01:13]} Nd7 {[%emt 0:00:39]} 19. Kh2 {[%emt 0:02:27]} a5 {[%emt 0:00:22]} 20. Rab1 {[%emt 0:00:28]} axb4 {[%emt 0:00:03]} 21. axb4 {[%emt 0:00:02]} Ra3 {[%emt 0:00:17]} 22. Qg3 {[%emt 0:04:19]} Rxd3 {[%emt 0:02:38]} 23. Nf5 {[%emt 0:00:02]} Qf8 {[%emt 0:00:01]} 24. b5 {[%emt 0:00:32]} c5 {[%emt 0:02:17]} 25. Ra1 {[%emt 0:00:19]} Kh7 {[%emt 0:00:03]} 26. Ra7 {[%emt 0:00:14]} Nf6 {[%emt 0:03:36]} 27. Rxb7 {[%emt 0:00:11]} gxf5 {[%emt 0:00:01]} 28. Rxf5 {[%emt 0:00:02]} Qg7 {[%emt 0:00:21]} 29. Qf3 {[%emt 0:00:09]} Rd2 {[%emt 0:00:14]} 30. Ra7 {[%emt 0:00:17]} Rc2 {[%emt 0:00:25]} 31. Qf1 {[%emt 0:00:10]} h5 {[%emt 0:00:35]} 32. Rc7 {[%emt 0:00:11]} h4 {[%emt 0:00:07]} 33. Rf3 {[%emt 0:00:07]} Kh6 {[%emt 0:00:20]} 34. b6 {[%emt 0:00:08]} Rb2 {[%emt 0:00:04]} 35. b7 {[%emt 0:00:01]} Qg6 {[%emt 0:00:36]} 36. Kg1 {[%emt 0:00:19]} Nxe4 {[%emt 0:00:44]} 37. Rfxf7 {[%emt 0:00:15]} Ng5 {[%emt 0:00:30]} 38. Rf8 {[%emt 0:00:11]} Rb1 {[%emt 0:00:08]} 39. Rh8+ {[%emt 0:00:01]} Nh7 {[%emt 0:00:03]} 40. Rhxh7+ {[%emt 0:00:05]} Kg5 {[%emt 0:00:01]} 41. Rhg7 {[%emt 0:00:02]} Rxf1+ {[%emt 0:00:11]} 42. Kxf1 {[%emt 0:00:09]} Rf6+ {[%emt 0:00:17]} 43. Ke2 {[%emt 0:00:05]} Rf8 {[%emt 0:00:13]} 44. Rxg6+ {[%emt 0:00:04]} Kxg6 {[%emt 0:00:01]} 45. Rc8 {[%emt 0:00:01]} 1-0

[Event "FIDE Open World Rapid 2024"]
[Site "New York"]
[Date "2024.12.28"]
[Round "8.36"]
[White "Horvath, Dominik"]
[Black "Gaehwiler, Gabriel"]
[Result "1/2-1/2"]
[ECO "B53"]
[WhiteElo "2542"]
[BlackElo "2392"]
[Annotator "ChessBase"]
[PlyCount "138"]
[EventDate "2024.12.14"]
[EventType "swiss"]
[EventCountry "USA"]
[SourceTitle "playchess.com"]
[Source "ChessBase"]
[SourceQuality "1"]
[TimeControl "900+10"]

1. e4 {[%emt 0:00:02]} c5 {[%emt 0:00:02]} 2. Nf3 {[%emt 0:00:02]} d6 {[%emt 0:00:03]} 3. d4 {[%emt 0:00:04]} cxd4 {[%emt 0:00:02]} 4. Qxd4 {[%emt 0:00:02]} Nc6 {[%emt 0:00:14]} 5. Qe3 {[%emt 0:00:02]} g6 {[%emt 0:01:31]} 6. Bc4 {[%emt 0:00:03]} Bg7 {[%emt 0:00:24]} 7. O-O {[%emt 0:00:09]} Nf6 {[%emt 0:00:06]} 8. h3 {[%emt 0:00:03]} O-O {[%emt 0:00:04]} 9. Rd1 {[%emt 0:00:01]} Qc7 {[%emt 0:00:46]} 10. Nc3 {[%emt 0:00:14]} a6 {[%emt 0:00:10]} 11. a4 {[%emt 0:00:04]} b6 {[%emt 0:01:20]} 12. Qe1 {[%emt 0:02:02]} Bb7 {[%emt 0:00:48]} 13. Bf4 {[%emt 0:00:10]} Ne5 {[%emt 0:00:38]} 14. Bxe5 {[%emt 0:00:55]} dxe5 {[%emt 0:02:14]} 15. Bd5 {[%emt 0:01:53]} Nxd5 {[%emt 0:00:41]} 16. exd5 {[%emt 0:00:02]} Rfd8 {[%emt 0:00:22]} 17. Rd2 {[%emt 0:00:15]} Rd7 {[%emt 0:04:48]} 18. Rad1 {[%emt 0:00:09]} Rad8 {[%emt 0:00:03]} 19. Qe4 {[%emt 0:01:57]} e6 {[%emt 0:00:15]} 20. g4 {[%emt 0:05:11]} h6 {[%emt 0:00:47]} 21. Nh4 {[%emt 0:00:46]} exd5 {[%emt 0:00:27]} 22. Nxd5 {[%emt 0:00:01]} Bxd5 {[%emt 0:00:10]} 23. Rxd5 {[%emt 0:00:01]} Rxd5 {[%emt 0:00:02]} 24. Rxd5 {[%emt 0:00:01]} Rxd5 {[%emt 0:00:02]} 25. Qxd5 {[%emt 0:00:02]} Qxc2 {[%emt 0:00:12]} 26. b3 {[%emt 0:00:14]} Bf6 {[%emt 0:00:13]} 27. Ng2 {[%emt 0:00:24]} Kg7 {[%emt 0:00:34]} 28. Ne3 {[%emt 0:00:05]} Qc3 {[%emt 0:01:35]} 29. Kg2 {[%emt 0:00:23]} Qc7 {[%emt 0:01:00]} 30. Nc4 {[%emt 0:00:23]} e4 {[%emt 0:00:19]} 31. Nd6 {[%emt 0:00:26]} Qe7 {[%emt 0:00:09]} 32. Nxe4 {[%emt 0:00:11]} Be5 {[%emt 0:00:02]} 33. Nd2 {[%emt 0:00:14]} Qc7 {[%emt 0:00:13]} 34. Nc4 {[%emt 0:00:03]} Bf6 {[%emt 0:00:07]} 35. Nd6 {[%emt 0:00:11]} Qe7 {[%emt 0:00:02]} 36. b4 {[%emt 0:00:19]} Bc3 {[%emt 0:00:06]} 37. b5 {[%emt 0:00:18]} axb5 {[%emt 0:00:02]} 38. axb5 {[%emt 0:00:04]} Be5 {[%emt 0:00:39]} 39. Nc4 {[%emt 0:00:04]} Bc7 {[%emt 0:00:02]} 40. Qc6 {[%emt 0:00:14]} Qd8 {[%emt 0:00:09]} 41. Ne3 {[%emt 0:00:13]} Qd6 {[%emt 0:00:02]} 42. Qxd6 {[%emt 0:01:26]} Bxd6 {[%emt 0:00:02]} 43. Kf3 {[%emt 0:00:00]} Bc5 {[%emt 0:00:03]} 44. Ke4 {[%emt 0:00:01]} Kf6 {[%emt 0:00:07]} 45. Nd1 {[%emt 0:01:18]} Ke6 {[%emt 0:00:09]} 46. f3 {[%emt 0:00:26]} f5+ {[%emt 0:00:02]} 47. gxf5+ {[%emt 0:00:11]} gxf5+ {[%emt 0:00:01]} 48. Kf4 {[%emt 0:00:03]} Bd6+ {[%emt 0:00:07]} 49. Ke3 {[%emt 0:00:01]} Kd5 {[%emt 0:00:03]} 50. Nc3+ {[%emt 0:00:06]} Kc4 {[%emt 0:00:02]} 51. Ne2 {[%emt 0:00:05]} Bc5+ {[%emt 0:00:33]} 52. Kf4 {[%emt 0:00:01]} Kxb5 {[%emt 0:00:01]} 53. Kxf5 {[%emt 0:00:01]} Kc4 {[%emt 0:00:01]} 54. Ke4 {[%emt 0:00:13]} b5 {[%emt 0:00:05]} 55. f4 {[%emt 0:00:26]} b4 {[%emt 0:00:20]} 56. Nc1 {[%emt 0:00:01]} Bd4 {[%emt 0:00:48]} 57. f5 {[%emt 0:00:33]} Bf6 {[%emt 0:00:00]} 58. Kf3 {[%emt 0:00:26]} Bg5 {[%emt 0:00:00]} 59. f6 {[%emt 0:00:18]} Bxf6 {[%emt 0:00:00]} 60. Ke4 {[%emt 0:00:03]} Bg5 {[%emt 0:00:23]} 61. Nd3 {[%emt 0:00:02]} b3 {[%emt 0:00:01]} 62. Nb2+ {[%emt 0:00:12]} Kb4 {[%emt 0:00:08]} 63. Kd3 {[%emt 0:00:06]} Bf6 {[%emt 0:00:12]} 64. Nc4 {[%emt 0:00:11]} Kc5 {[%emt 0:00:39]} 65. Ne3 {[%emt 0:00:25]} h5 {[%emt 0:00:12]} 66. Nf5 {[%emt 0:00:17]} Kd5 {[%emt 0:00:12]} 67. Ng3 {[%emt 0:00:07]} h4 {[%emt 0:00:12]} 68. Nf5 {[%emt 0:00:01]} Kc5 {[%emt 0:00:06]} 69. Nxh4 {[%emt 0:00:06]} Bxh4 {[%emt 0:00:21]} 1/2-1/2

[Event "FIDE Open World Rapid 2024"]
[Site "New York"]
[Date "2024.12.27"]
[Round "8.36"]
[White "Ohanyan, Emin"]
[Black "Volokitin, Andrei"]
[Result "0-1"]
[ECO "B21"]
[WhiteElo "2514"]
[BlackElo "2649"]
[Annotator "ChessBase"]
[PlyCount "52"]
[EventDate "2024.12.14"]
[EventType "swiss"]
[EventCountry "USA"]
[SourceTitle "playchess.com"]
[Source "ChessBase"]
[SourceQuality "1"]
[TimeControl "900+10"]

1. e4 {[%emt 0:00:07]} c5 {[%emt 0:00:02]} 2. d4 {[%emt 0:00:02]} cxd4 {[%emt 0:00:03]} 3. Qxd4 {[%emt 0:00:04]} Nc6 {[%emt 0:00:03]} 4. Qd3 {[%emt 0:00:03]} g6 {[%emt 0:00:32]} 5. Nc3 {[%emt 0:00:02]} Bg7 {[%emt 0:00:05]} 6. Nf3 {[%emt 0:00:02]} Nf6 {[%emt 0:00:08]} 7. Be2 {[%emt 0:00:02]} O-O {[%emt 0:01:33]} 8. O-O {[%emt 0:00:03]} d6 {[%emt 0:01:04]} 9. Nd5 {[%emt 0:00:01]} Bg4 {[%emt 0:02:01]} 10. c3 {[%emt 0:00:02]} Nd7 {[%emt 0:00:18]} 11. Bg5 {[%emt 0:00:02]} h6 {[%emt 0:00:41]} 12. Bh4 {[%emt 0:00:02]} Nc5 {[%emt 0:00:03]} 13. Qe3 {[%emt 0:00:45]} g5 {[%emt 0:01:01]} 14. Bg3 {[%emt 0:00:12]} e6 {[%emt 0:00:07]} 15. Nb4 {[%emt 0:00:10]} f5 {[%emt 0:00:02]} 16. Nxc6 {[%emt 0:03:11]} bxc6 {[%emt 0:00:02]} 17. exf5 {[%emt 0:00:12]} exf5 {[%emt 0:00:02]} 18. Bxd6 {[%emt 0:05:28]} Qxd6 {[%emt 0:00:09]} 19. Rad1 {[%emt 0:00:02]} f4 {[%emt 0:00:21]} 20. Rxd6 {[%emt 0:00:01]} fxe3 {[%emt 0:00:03]} 21. Rxc6 {[%emt 0:00:02]} exf2+ {[%emt 0:02:26]} 22. Rxf2 {[%emt 0:00:01]} Rac8 {[%emt 0:00:08]} 23. Rxc8 {[%emt 0:00:08]} Rxc8 {[%emt 0:00:04]} 24. Nd2 {[%emt 0:01:28]} Be6 {[%emt 0:00:33]} 25. Rf1 {[%emt 0:01:18]} Na4 {[%emt 0:00:16]} 26. Rb1 {[%emt 0:00:39]} Nxb2 {[%emt 0:00:27]} 0-1

[Event "FIDE Open World Rapid 2024"]
[Site "New York"]
[Date "2024.12.27"]
[Round "8.37"]
[White "Ghosh, Diptayan"]
[Black "Rakhmanov, Aleksandr"]
[Result "1-0"]
[ECO "A49"]
[WhiteElo "2569"]
[BlackElo "2585"]
[Annotator "ChessBase"]
[PlyCount "81"]
[EventDate "2024.12.14"]
[EventType "swiss"]
[EventCountry "USA"]
[SourceTitle "playchess.com"]
[Source "ChessBase"]
[SourceQuality "1"]
[TimeControl "900+10"]

1. Nf3 {[%emt 0:00:36]} Nf6 {[%emt 0:00:30]} 2. g3 {[%emt 0:00:02]} g6 {[%emt 0:00:03]} 3. Bg2 {[%emt 0:00:03]} Bg7 {[%emt 0:00:01]} 4. d4 {[%emt 0:00:01]} d6 {[%emt 0:00:06]} 5. O-O {[%emt 0:00:04]} O-O {[%emt 0:00:02]} 6. Nc3 {[%emt 0:00:02]} d5 {[%emt 0:00:07]} 7. Re1 {[%emt 0:00:03]} c6 {[%emt 0:00:03]} 8. e4 {[%emt 0:00:08]} dxe4 {[%emt 0:00:05]} 9. Nxe4 {[%emt 0:00:01]} Nxe4 {[%emt 0:00:08]} 10. Rxe4 {[%emt 0:00:02]} Nd7 {[%emt 0:00:22]} 11. c3 {[%emt 0:00:14]} Nf6 {[%emt 0:00:00]} 12. Re1 {[%emt 0:00:04]} Bg4 {[%emt 0:00:00]} 13. Qb3 {[%emt 0:00:18]} Bxf3 {[%emt 0:00:03]} 14. Bxf3 {[%emt 0:00:02]} Qd7 {[%emt 0:00:03]} 15. a4 {[%emt 0:00:13]} a5 {[%emt 0:00:04]} 16. Bf4 {[%emt 0:00:45]} e6 {[%emt 0:00:19]} 17. Rad1 {[%emt 0:00:05]} Nd5 {[%emt 0:00:04]} 18. Bd2 {[%emt 0:00:11]} Rfd8 {[%emt 0:00:23]} 19. h4 {[%emt 0:00:36]} b5 {[%emt 0:00:30]} 20. h5 {[%emt 0:01:27]} Rab8 {[%emt 0:00:24]} 21. Bc1 {[%emt 0:00:39]} Nb6 {[%emt 0:00:26]} 22. axb5 {[%emt 0:00:13]} cxb5 {[%emt 0:00:03]} 23. Bg5 {[%emt 0:01:17]} a4 {[%emt 0:00:17]} 24. Qa2 {[%emt 0:00:19]} Re8 {[%emt 0:00:14]} 25. Kg2 {[%emt 0:03:21]} Nd5 {[%emt 0:00:27]} 26. h6 {[%emt 0:00:58]} Bf8 {[%emt 0:02:28]} 27. Re5 {[%emt 0:00:19]} b4 {[%emt 0:06:51]} 28. c4 {[%emt 0:03:42]} b3 {[%emt 0:00:06]} 29. Qb1 {[%emt 0:00:01]} Nb4 {[%emt 0:00:10]} 30. Qe4 {[%emt 0:00:05]} Rbc8 {[%emt 0:00:43]} 31. d5 {[%emt 0:00:26]} exd5 {[%emt 0:00:09]} 32. cxd5 {[%emt 0:00:02]} Rxe5 {[%emt 0:01:06]} 33. Qxe5 {[%emt 0:00:03]} Re8 {[%emt 0:00:08]} 34. Qc3 {[%emt 0:01:20]} Qf5 {[%emt 0:01:37]} 35. Bf6 {[%emt 0:00:44]} Bd6 {[%emt 0:02:29]} 36. Be7 {[%emt 0:00:27]} Qe5 {[%emt 0:00:22]} 37. Qxe5 {[%emt 0:00:51]} Bxe5 {[%emt 0:00:01]} 38. Bxb4 {[%emt 0:00:01]} Bxb2 {[%emt 0:00:01]} 39. d6 {[%emt 0:00:01]} Bf6 {[%emt 0:00:18]} 40. d7 {[%emt 0:00:08]} Rd8 {[%emt 0:00:01]} 41. Re1 {[%emt 0:00:06]} 1-0

[Event "FIDE Open World Rapid 2024"]
[Site "New York"]
[Date "2024.12.28"]
[Round "8.37"]
[White "Manon, Reja Neer"]
[Black "Papasimakopoulos, Alexandros"]
[Result "1/2-1/2"]
[ECO "C17"]
[WhiteElo "2429"]
[BlackElo "2379"]
[Annotator "ChessBase"]
[PlyCount "163"]
[EventDate "2024.12.14"]
[EventType "swiss"]
[EventCountry "USA"]
[SourceTitle "playchess.com"]
[Source "ChessBase"]
[SourceQuality "1"]
[TimeControl "900+10"]

1. e4 {[%emt 0:01:48]} e6 {[%emt 0:00:02]} 2. d4 {[%emt 0:00:02]} d5 {[%emt 0:00:01]} 3. Nc3 {[%emt 0:00:01]} Bb4 {[%emt 0:00:01]} 4. e5 {[%emt 0:00:30]} c5 {[%emt 0:00:02]} 5. Bd2 {[%emt 0:00:01]} Ne7 {[%emt 0:00:02]} 6. Nf3 {[%emt 0:00:04]} cxd4 {[%emt 0:00:05]} 7. Nb5 {[%emt 0:00:08]} Bxd2+ {[%emt 0:00:02]} 8. Qxd2 {[%emt 0:00:01]} O-O {[%emt 0:00:03]} 9. Bd3 {[%emt 0:00:16]} Nbc6 {[%emt 0:00:10]} 10. O-O-O {[%emt 0:00:39]} a6 {[%emt 0:00:09]} 11. Nbxd4 {[%emt 0:00:05]} Nxd4 {[%emt 0:00:03]} 12. Nxd4 {[%emt 0:00:03]} Nc6 {[%emt 0:00:00]} 13. Nf3 {[%emt 0:00:20]} f6 {[%emt 0:00:16]} 14. exf6 {[%emt 0:01:07]} Qxf6 {[%emt 0:00:02]} 15. Rhe1 {[%emt 0:00:02]} e5 {[%emt 0:00:23]} 16. Bf1 {[%emt 0:00:17]} d4 {[%emt 0:00:47]} 17. Bd3 {[%emt 0:01:09]} Bf5 {[%emt 0:00:19]} 18. Kb1 {[%emt 0:01:56]} Rae8 {[%emt 0:00:50]} 19. Bxf5 {[%emt 0:00:44]} Qxf5 {[%emt 0:00:02]} 20. Qd3 {[%emt 0:01:21]} e4 {[%emt 0:01:06]} 21. Qc4+ {[%emt 0:01:39]} Qf7 {[%emt 0:00:51]} 22. Qxf7+ {[%emt 0:00:02]} Rxf7 {[%emt 0:00:01]} 23. Re2 {[%emt 0:02:19]} Rd7 {[%emt 0:00:20]} 24. a3 {[%emt 0:00:46]} h6 {[%emt 0:00:15]} 25. Kc1 {[%emt 0:00:49]} Kf7 {[%emt 0:00:44]} 26. Nd2 {[%emt 0:00:34]} d3 {[%emt 0:01:05]} 27. cxd3 {[%emt 0:01:21]} exd3 {[%emt 0:00:03]} 28. Rxe8 {[%emt 0:00:01]} Kxe8 {[%emt 0:00:01]} 29. Nb3 {[%emt 0:00:35]} Rd5 {[%emt 0:00:15]} 30. Kd2 {[%emt 0:00:26]} g5 {[%emt 0:00:37]} 31. Kc3 {[%emt 0:00:18]} Ne5 {[%emt 0:00:24]} 32. Nc1 {[%emt 0:00:05]} Ng4 {[%emt 0:00:16]} 33. Nxd3 {[%emt 0:00:56]} Nxh2 {[%emt 0:00:04]} 34. Rh1 {[%emt 0:00:09]} Ng4 {[%emt 0:00:02]} 35. f3 {[%emt 0:00:17]} Nf6 {[%emt 0:00:22]} 36. Rxh6 {[%emt 0:00:00]} Ke7 {[%emt 0:00:11]} 37. Rh8 {[%emt 0:00:00]} Rd7 {[%emt 0:00:13]} 38. Nc5 {[%emt 0:00:17]} Rc7 {[%emt 0:00:17]} 39. Kd4 {[%emt 0:00:01]} a5 {[%emt 0:00:03]} 40. Rb8 {[%emt 0:00:07]} Rxc5 {[%emt 0:00:12]} 41. Rxb7+ {[%emt 0:00:23]} Kd6 {[%emt 0:00:01]} 42. Rb6+ {[%emt 0:00:05]} Rc6 {[%emt 0:00:01]} 43. Rb5 {[%emt 0:00:02]} Rc2 {[%emt 0:00:18]} 44. Rxg5 {[%emt 0:00:26]} Rxb2 {[%emt 0:00:02]} 45. g4 {[%emt 0:00:15]} Rb3 {[%emt 0:00:03]} 46. Rf5 {[%emt 0:00:11]} Ke6 {[%emt 0:00:06]} 47. Rxa5 {[%emt 0:00:08]} Rxf3 {[%emt 0:00:02]} 48. g5 {[%emt 0:00:08]} Nh5 {[%emt 0:00:07]} 49. a4 {[%emt 0:00:08]} Rg3 {[%emt 0:00:05]} 50. Ke4 {[%emt 0:00:16]} Rg4+ {[%emt 0:00:12]} 51. Kf3 {[%emt 0:00:02]} Rb4 {[%emt 0:00:18]} 52. g6 {[%emt 0:00:08]} Ng7 {[%emt 0:00:05]} 53. Ra6+ {[%emt 0:00:11]} Kf5 {[%emt 0:00:05]} 54. Ke3 {[%emt 0:00:02]} Ne6 {[%emt 0:00:08]} 55. a5 {[%emt 0:00:20]} Rg4 {[%emt 0:00:03]} 56. Rb6 {[%emt 0:00:13]} Rxg6 {[%emt 0:00:03]} 57. a6 {[%emt 0:00:01]} Rg3+ {[%emt 0:00:03]} 58. Kd2 {[%emt 0:00:10]} Ra3 {[%emt 0:00:01]} 59. Kc2 {[%emt 0:00:03]} Ke5 {[%emt 0:00:04]} 60. Kb2 {[%emt 0:00:23]} Ra4 {[%emt 0:00:01]} 61. Rb5+ {[%emt 0:00:18]} Kd4 {[%emt 0:00:09]} 62. Rb6 {[%emt 0:00:04]} Nc5 {[%emt 0:00:03]} 63. Kc2 {[%emt 0:00:09]} Ra5 {[%emt 0:00:14]} 64. Rh6 {[%emt 0:00:08]} Kc4 {[%emt 0:00:31]} 65. Kb2 {[%emt 0:00:09]} Nxa6 {[%emt 0:00:20]} 66. Rh4+ {[%emt 0:00:02]} Kb5 {[%emt 0:00:02]} 67. Rh5+ {[%emt 0:00:02]} Nc5 {[%emt 0:00:01]} 68. Kc3 {[%emt 0:00:00]} Ra4 {[%emt 0:00:02]} 69. Rf5 {[%emt 0:00:17]} Rc4+ {[%emt 0:00:04]} 70. Kd2 {[%emt 0:00:01]} Rh4 {[%emt 0:00:03]} 71. Ke3 {[%emt 0:00:03]} Rh3+ {[%emt 0:00:12]} 72. Rf3 {[%emt 0:00:04]} Rh8 {[%emt 0:00:08]} 73. Rf5 {[%emt 0:00:04]} Re8+ {[%emt 0:00:08]} 74. Kd4 {[%emt 0:00:08]} Re4+ {[%emt 0:00:04]} 75. Kd5 {[%emt 0:00:01]} Re1 {[%emt 0:00:08]} 76. Kd6 {[%emt 0:00:07]} Re6+ {[%emt 0:00:29]} 77. Kd5 {[%emt 0:00:02]} Rh6 {[%emt 0:00:01]} 78. Kd4 {[%emt 0:00:04]} Kb4 {[%emt 0:00:02]} 79. Kd5 {[%emt 0:00:09]} Nd3 {[%emt 0:00:12]} 80. Kd4 {[%emt 0:00:04]} Rd6+ {[%emt 0:00:02]} 81. Rd5 {[%emt 0:00:06]} Rxd5+ {[%emt 0:00:13]} 82. Kxd5 {[%emt 0:00:03]} 1/2-1/2